fUSD/lending_fUSD_20240930
["ID","MTS","AMOUNT","RATE_DAILY","PERIOD"]
[339548199,1727688088197,-48714.574777,0.0003969,30]
[339548200,1727688088219,-150.0,0.0003969,30]
[339548201,1727688088243,-25315.26782526,0.00039693,30]
[339548202,1727688088265,-19689.46917523,0.00039695,30]
[339548203,1727688088288,-10867.53473939,0.00039697,30]
[339548204,1727688088310,-5000.0,0.000397,120]
[339548205,1727688088333,-797.6304533,0.000397,120]
[339548206,1727688088503,-10000.0,0.000397,30]
[339548207,1727688088526,-150.0,0.00039754,30]
[339548208,1727688088548,-150.0,0.00039773,30]
[339548209,1727688088572,-374.02,0.00039789,30]
[339548210,1727688088595,-150.0,0.00039798,30]
[339548211,1727688088618,-265.24548282,0.000398,30]
[339548212,1727688088641,-5000.0,0.000398,120]
[339548213,1727688088667,-20000.0,0.000398,30]
[339548214,1727688088694,-414353.8781434,0.000398,30]
[339548215,1727688088718,-20000.0,0.000398,120]
[339548216,1727688088742,-529767.75561119,0.0003983,30]
[339548217,1727688088767,-150.0,0.00039834,30]
[339548218,1727688088790,-1560.73,0.00039841,30]
[339548219,1727688088815,-411.0,0.00039886,90]
[339548220,1727688088840,-150.0,0.0003989,120]
[339548221,1727688088862,-10186.31143834,0.000399,120]
[339548222,1727688088887,-1303.18711629,0.000399,120]
[339548223,1727688088912,-9806.0836756,0.000399,120]
[339548224,1727688088939,-150000.0,0.000399,30]
[339548225,1727688088961,-4877.2705907,0.000399,120]
[339548226,1727688088985,-151.0,0.00039945,120]
[339548227,1727688089009,-223320.44779704,0.0003998,120]
[339548228,1727688089032,-411.0,0.00039986,90]
[339548229,1727688089057,-10078.81467486,0.0003999,120]
[339548230,1727688089083,-411.0,0.00039996,90]
[339548231,1727688089106,-150.0,0.00039997,120]
[339548232,1727688089128,-200.0,0.00039999,30]
[339548233,1727688089158,-50000.0,0.0004,30]
[339548234,1727688089185,-50000.0,0.0004,40]
[339548235,1727688089209,-12549.55884035,0.0004,30]
[339548236,1727688089233,-11705.40317464,0.0004,30]
[339548237,1727688089257,-100000.0,0.0004,120]
[339548238,1727688089279,-500.0,0.0004,120]
[339548239,1727688089302,-477.12749073,0.0004,30]
[339548240,1727688089327,-2198.93239957,0.0004,120]
[339548241,1727688089349,-975.65472597,0.0004,120]
[339548242,1727688089372,-399.999999,0.0004,30]
[339548243,1727688089395,-1487.02370119,0.0004,30]
[339548244,1727688089418,-1695.93617897,0.0004,120]
[339548245,1727688089447,-1136.25958099,0.0004,120]
[339548246,1727688089470,-569.24917146,0.0004,120]
[339548247,1727688089494,-176.70545915,0.0004,120]
[339548248,1727688089516,-1167.94771026,0.0004,120]
[339548249,1727688089539,-1050.73492626,0.0004,32]
[339548250,1727688089562,-250.27296511,0.0004,30]
[339548251,1727688089585,-465.78100033,0.0004,120]
[339548252,1727688089609,-1303.25858651,0.0004,120]
[339548253,1727688089631,-5294.88597314,0.0004,120]
[339548254,1727688089654,-493.43990458,0.0004,120]
[339548255,1727688089680,-5000.0,0.0004,30]
[339548256,1727688089704,-1100.0,0.0004,120]
[339548257,1727688089728,-1108.14699343,0.0004,120]
[339548258,1727688089752,-10084.72199863,0.0004,120]
[339548259,1727688089775,-281.73755057,0.0004,120]
[339548260,1727688089799,-1800.0,0.0004,41]
[339548261,1727688089822,-64204.68308287,0.0004,30]
[339548262,1727688161297,150.0,0.0001077,2]
[339548263,1727688209297,200.0,0.00021116,120]
[339548264,1727688313321,491.93,9.281e-05,2]
[339548272,1727688525929,3141.75,0.00022,120]
[339548305,1727688632020,-300.0,0.00010958,2]
[339548306,1727688632030,-150.0,0.00010958,2]
[339548307,1727688632040,-96.70831491,0.00010959,2]
[339548308,1727688632083,-64.34168509,0.00010959,2]
[339548309,1727688632093,-425.38548109,0.00010959,2]
[339548310,1727688632104,-66159.26827521,0.00010959,2]
[339548311,1727688632114,-165.52,0.00010959,2]
[339548312,1727688632123,-6388.57745674,0.00010959,2]
[339548313,1727688632132,-1050.0,0.00011,2]
[339548314,1727688632141,-5042.04,0.00011055,2]
[339548315,1727688632150,-250.0,0.00011103,2]
[339548316,1727688632160,-1000.0,0.00011119,2]
[339548317,1727688632169,-205.13,0.00011141,2]
[339548318,1727688632179,-2717.28,0.00011189,2]
[339548319,1727688632188,-170.91,0.00011207,2]
[339548320,1727688632197,-816.73,0.00011222,2]
[339548321,1727688632207,-5523.27,0.00011222,2]
[339548322,1727688632216,-150.0,0.00011244,2]
[339548323,1727688632225,-150.0,0.00011244,2]
[339548324,1727688632235,-150.08567351,0.00011244,2]
[339548325,1727688632244,-150.08597994,0.00011244,2]
[339548326,1727688632253,-150.0,0.00011244,2]
[339548327,1727688632262,-150.0,0.00011244,2]
[339548329,1727688632272,-150.11004349,0.00011244,2]
[339548331,1727688632281,-150.18566845,0.00011244,2]
[339548332,1727688632291,-150.10107823,0.00011244,2]
[339548333,1727688632300,-150.0,0.00011244,2]
[339548334,1727688632309,-150.0,0.00011244,2]
[339548335,1727688632322,-150.34728085,0.00011244,2]
[339548336,1727688632331,-250.0,0.00011253,2]
[339548337,1727688632341,-499.99,0.00011253,2]
[339548338,1727688632350,-250.0,0.0001126,2]
[339548339,1727688632361,-1500.0,0.00011284,2]
[339548340,1727688632370,-1632.89,0.00011319,2]
[339548341,1727688632379,-217.31,0.00011326,2]
[339548342,1727688632390,-2751.0,0.00011507,2]
[339548343,1727688632403,-491.93,0.00011545,2]
[339548344,1727688632412,-150.0,0.0001166,2]
[339548345,1727688632421,-180.82,0.00011702,2]
[339548346,1727688632430,-855.8431,0.00011743,2]
[339548347,1727688632441,-150.0,0.00011868,2]
[339548348,1727688632450,-420.0,0.00012042,2]
[339548349,1727688632460,-150.0,0.00012077,2]
[339548350,1727688632469,-180.0,0.00012173,2]
[339548351,1727688632478,-18453.98742767,0.0001218,2]
[339548352,1727688632487,-180.82,0.00012287,2]
[339548353,1727688632496,-171.14,0.00012383,2]
[339548354,1727688632505,-1000.0,0.00012396,2]
[339548355,1727688632514,-330.172,0.00012398,2]
[339548356,1727688632523,-1515.0074,0.00012398,2]
[339548357,1727688632532,-7500.0,0.00012398,2]
[339548358,1727688632542,-2379.91505313,0.00012399,2]
[339548359,1727688632551,-995.5,0.000124,2]
[339548360,1727688632560,-183.23497685,0.000124,2]
[339548361,1727688632569,-183.23497685,0.000124,2]
[339548362,1727688632578,-183.23497685,0.000124,2]
[339548363,1727688632587,-183.73,0.000124,2]
[339548364,1727688632596,-168.15413023,0.000124,2]
[339548365,1727688632605,-168.15413023,0.000124,2]
[339548366,1727688632615,-168.15413023,0.000124,2]
[339548367,1727688632624,-168.15413023,0.000124,2]
[339548368,1727688632633,-168.65,0.000124,2]
[339548369,1727688632642,-151.79772009,0.000124,2]
[339548370,1727688632652,-151.79772009,0.000124,2]
[339548371,1727688632661,-151.79772009,0.000124,2]
[339548372,1727688632670,-151.79772009,0.000124,2]
[339548373,1727688632679,-152.29,0.000124,2]
[339548374,1727688632688,-179.91941837,0.000124,2]
[339548375,1727688632697,-537.244,0.0001244,2]
[339548376,1727688632706,-167.0,0.00012445,2]
[339548377,1727688632715,-1016.9476,0.00012466,2]
[339548378,1727688632724,-500.0,0.00012473,2]
[339548379,1727688632735,-500.0,0.00012473,2]
[339548380,1727688632744,-500.0,0.00012473,2]
[339548381,1727688632753,-153.0,0.00012488,2]
[339548382,1727688632762,-153.0,0.0001249,2]
[339548383,1727688632772,-150.0,0.00012493,2]
[339548384,1727688632781,-150.0,0.00012493,2]
[339548385,1727688632791,-150.0,0.00012493,2]
[339548386,1727688632800,-300.02,0.00012497,2]
[339548387,1727688632810,-500.0,0.00012497,2]
[339548388,1727688632819,-500.0,0.00012497,2]
[339548389,1727688632828,-266.13458776,0.00012497,2]
[339548390,1727688632837,-500.0,0.00012497,2]
[339548391,1727688632846,-258.79,0.00012497,2]
[339548392,1727688632856,-642.24,0.00012497,2]
[339548393,1727688632866,-642.24,0.00012497,2]
[339548394,1727688632875,-642.24,0.00012497,2]
[339548395,1727688632885,-912.19,0.00012497,2]
[339548396,1727688632894,-912.19,0.00012497,2]
[339548397,1727688632904,-912.19,0.00012497,2]
[339548398,1727688632913,-642.24,0.00012497,2]
[339548399,1727688632923,-912.19,0.00012497,2]
[339548400,1727688632932,-642.24,0.00012497,2]
[339548401,1727688632942,-912.19,0.00012497,2]
[339548402,1727688632952,-505.64,0.00012497,2]
[339548403,1727688632961,-505.64,0.00012497,2]
[339548404,1727688632971,-505.64,0.00012497,2]
[339548405,1727688632981,-505.64,0.00012497,2]
[339548406,1727688632990,-1400.73,0.00012497,2]
[339548407,1727688633000,-1400.73,0.00012497,2]
[339548408,1727688633009,-1400.73,0.00012497,2]
[339548409,1727688633019,-1400.73,0.00012497,2]
[339548410,1727688633028,-500.0,0.00012497,2]
[339548411,1727688633038,-500.90208592,0.00012497,2]
[339548412,1727688633048,-759.42,0.00012497,2]
[339548413,1727688633058,-759.42,0.00012497,2]
[339548414,1727688633067,-759.42,0.00012497,2]
[339548415,1727688633077,-759.42,0.00012497,2]
[339548416,1727688633086,-759.42,0.00012497,2]
[339548417,1727688633096,-500.0,0.00012497,2]
[339548418,1727688633105,-558.4,0.00012497,2]
[339548419,1727688633115,-362.78674963,0.00012497,2]
[339548420,1727688633125,-500.0,0.00012497,2]
[339548421,1727688633134,-500.0,0.00012497,2]
[339548422,1727688633144,-500.0,0.00012497,2]
[339548423,1727688633154,-500.0,0.00012497,2]
[339548424,1727688633164,-500.0,0.00012497,2]
[339548425,1727688633174,-500.0,0.00012497,2]
[339548426,1727688633184,-500.0,0.00012497,2]
[339548427,1727688633194,-500.0,0.00012497,2]
[339548428,1727688633204,-500.0,0.00012497,2]
[339548429,1727688633213,-500.0,0.00012497,2]
[339548430,1727688633224,-500.0,0.00012497,2]
[339548431,1727688633234,-500.0,0.00012497,2]
[339548432,1727688633243,-402.66,0.00012497,2]
[339548433,1727688633253,-468.14911246,0.00012497,2]
[339548434,1727688633264,-232.81432059,0.00012497,2]
[339548435,1727688633274,-500.0,0.00012497,2]
[339548436,1727688633284,-500.0,0.00012497,2]
[339548437,1727688633294,-500.0,0.00012497,2]
[339548438,1727688633303,-500.0,0.00012497,2]
[339548439,1727688633314,-500.0,0.00012497,2]
[339548440,1727688633326,-500.0,0.00012497,2]
[339548441,1727688633336,-500.0,0.00012497,2]
[339548442,1727688633346,-500.0,0.00012497,2]
[339548443,1727688633356,-500.0,0.00012497,2]
[339548444,1727688633366,-257.43538269,0.00012497,2]
[339548445,1727688633375,-500.0,0.00012497,2]
[339548446,1727688633385,-356.18478271,0.00012497,2]
[339548447,1727688633394,-563.0,0.00012498,2]
[339548448,1727688633406,-459361.62924629,0.00012498,4]
[339548449,1727688633562,-544.57707993,0.00012498,4]
[339548450,1727688633574,-418.54007673,0.00012498,4]
[339548451,1727688633586,-640.87,0.00012498,4]
[339548452,1727688633599,-3209.95,0.00012498,4]
[339548454,1727688638003,-1095.5878,0.00012398,2]
[339548456,1727688638013,-913.46665246,0.00012498,4]
[339548457,1727688638024,-12294.39456971,0.00012498,4]
[339548458,1727688638065,-2310.87195504,0.00012498,4]
[339548459,1727688638127,-292155.9680479,0.00012498,4]
[339548460,1727688638137,-280.26739322,0.00012498,2]
[339548461,1727688638147,-188532.26821572,0.00012498,4]
[339548462,1727688638156,-200.0,0.00012498,2]
[339548463,1727688638165,-405.373,0.00012498,2]
[339548464,1727688638175,-151.0,0.00012498,2]
[339548465,1727688638184,-151.0,0.00012498,2]
[339548466,1727688638194,-151.0,0.00012498,2]
[339548467,1727688638203,-224.739836,0.00012498,2]
[339548468,1727688638212,-151.0,0.00012498,2]
[339548469,1727688638221,-273.728523,0.00012498,2]
[339548470,1727688638231,-151.0,0.00012498,2]
[339548471,1727688638241,-642.24,0.00012498,2]
[339548472,1727688638251,-912.19,0.00012498,2]
[339548473,1727688638261,-28325.99828271,0.00012498,4]
[339548474,1727688638272,-4618.26111831,0.00012498,4]
[339548475,1727688638281,-505.64,0.00012498,2]
[339548476,1727688638291,-835.63079984,0.00012498,2]
[339548477,1727688638307,-565.09920016,0.00012498,2]
[339548478,1727688638321,-500.0,0.00012498,2]
[339548479,1727688638332,-486.55036777,0.00012499,3]
[339548480,1727688638341,-151.0,0.00012499,2]
[339548481,1727688638351,-151.0,0.00012499,2]
[339548482,1727688638361,-400.0,0.00012499,2]
[339548483,1727688638370,-400.0,0.00012499,2]
[339548485,1727688638379,-59.52214509,0.00012499,2]
[339548487,1727688638390,-91.47785491,0.00012499,2]
[339548489,1727688638399,-151.0,0.00012499,2]
[339548491,1727688638411,-151.0,0.00012499,2]
[339548493,1727688638420,-642.24,0.00012499,2]
[339548495,1727688638429,-664.7923479,0.00012499,2]
[339548498,1727688638444,-247.3976521,0.00012499,2]
[339548500,1727688638453,-912.19,0.00012499,2]
[339548502,1727688638464,-642.24,0.00012499,2]
[339548504,1727688638473,-912.19,0.00012499,2]
[339548506,1727688638482,-642.24,0.00012499,2]
[339548508,1727688638491,-912.19,0.00012499,2]
[339548510,1727688638500,-642.24,0.00012499,2]
[339548512,1727688638510,-912.19,0.00012499,2]
[339548514,1727688638519,-912.19,0.00012499,2]
[339548516,1727688638530,-642.24,0.00012499,2]
[339548518,1727688638539,-912.19,0.00012499,2]
[339548520,1727688638548,-642.24,0.00012499,2]
[339548522,1727688638557,-912.19,0.00012499,2]
[339548524,1727688638567,-642.24,0.00012499,2]
[339548526,1727688638577,-912.19,0.00012499,2]
[339548528,1727688638586,-642.24,0.00012499,2]
[339548530,1727688638595,-912.19,0.00012499,2]
[339548532,1727688638605,-642.24,0.00012499,2]
[339548534,1727688638614,-912.19,0.00012499,2]
[339548536,1727688638623,-912.19,0.00012499,2]
[339548538,1727688638633,-642.24,0.00012499,2]
[339548540,1727688638642,-912.19,0.00012499,2]
[339548542,1727688638651,-642.24,0.00012499,2]
[339548544,1727688638661,-912.19,0.00012499,2]
[339548546,1727688638670,-642.24,0.00012499,2]
[339548547,1727688638679,-912.19,0.00012499,2]
[339548548,1727688638688,-642.24,0.00012499,2]
[339548549,1727688638698,-912.19,0.00012499,2]
[339548550,1727688638707,-642.24,0.00012499,2]
[339548551,1727688638716,-912.19,0.00012499,2]
[339548552,1727688638725,-642.24,0.00012499,2]
[339548553,1727688638735,-912.21647053,0.00012499,2]
[339548554,1727688638744,-642.24,0.00012499,2]
[339548555,1727688638754,-642.24,0.00012499,2]
[339548556,1727688638763,-642.27401285,0.00012499,2]
[339548557,1727688638772,-505.64,0.00012499,2]
[339548558,1727688638782,-505.64,0.00012499,2]
[339548559,1727688638791,-505.64,0.00012499,2]
[339548560,1727688638800,-505.64,0.00012499,2]
[339548561,1727688638810,-505.64,0.00012499,2]
[339548562,1727688638819,-505.64,0.00012499,2]
[339548563,1727688638828,-505.64,0.00012499,2]
[339548564,1727688638838,-505.64,0.00012499,2]
[339548565,1727688638847,-505.64,0.00012499,2]
[339548566,1727688638856,-505.64,0.00012499,2]
[339548567,1727688638866,-277.23186451,0.00012499,2]
[339548569,1727688639993,-228.40813549,0.00012499,2]
[339548570,1727688640003,-410.92186451,0.00012499,2]
[339548571,1727688640058,-94.71813549,0.00012499,2]
[339548572,1727688640067,-505.64,0.00012499,2]
[339548573,1727688640076,-85.43013552,0.00012499,2]
[339548574,1727688640122,-420.20986448,0.00012499,2]
[339548575,1727688640131,-505.64,0.00012499,2]
[339548576,1727688640140,-505.64,0.00012499,2]
[339548577,1727688640149,-505.64,0.00012499,2]
[339548578,1727688640159,-180.26113552,0.00012499,2]
[339548579,1727688640169,-294.81998853,0.00012499,2]
[339548851,1727688643075,-30.55887595,0.00012499,2]
[339548853,1727688643084,-227.78162405,0.00012499,2]
[339548856,1727688643095,-277.93122116,0.00012499,2]
[339548858,1727688643104,-977.13245518,0.00012499,2]
[339548860,1727688643116,-251.91699999,0.00012499,2]
[339548868,1727688643192,-171.68054483,0.00012499,2]
[339548870,1727688643202,-1400.73,0.00012499,2]
[339548872,1727688643211,-1400.73,0.00012499,2]
[339548874,1727688643220,-1400.73,0.00012499,2]
[339548876,1727688643229,-1400.73,0.00012499,2]
[339548878,1727688643238,-1400.73,0.00012499,2]
[339548880,1727688643247,-818.11968178,0.00012499,2]
[339548883,1727688643270,-269.33583941,0.00012499,2]
[339548886,1727688643281,-313.27447881,0.00012499,2]
[339548888,1727688643290,-966.72552119,0.00012499,2]
[339548897,1727688643374,-427.18428536,0.00012499,2]
[339548899,1727688643384,-6.82019345,0.00012499,2]
[339548901,1727688643393,-531.05980655,0.00012499,2]
[339548903,1727688643404,-869.67019345,0.00012499,2]
[339548905,1727688643413,-65.38851738,0.00012499,2]
[339548914,1727688643493,-653.44587086,0.00012499,2]
[339549122,1727688646009,-440.090976,0.00012027,2]
[339549123,1727688646020,-681.89561176,0.00012499,2]
[339549124,1727688646030,-1400.73,0.00012499,2]
[339549125,1727688646039,-1400.73,0.00012499,2]
[339549126,1727688646049,-1400.73,0.00012499,2]
[339549127,1727688646059,-1400.73,0.00012499,2]
[339549128,1727688646068,-1400.73,0.00012499,2]
[339549129,1727688646077,-1400.73,0.00012499,2]
[339549130,1727688646087,-843.60532795,0.00012499,2]
[339549131,1727688646099,-557.12467205,0.00012499,2]
[339549132,1727688646109,-1400.73,0.00012499,2]
[339549133,1727688646118,-1400.76243037,0.00012499,2]
[339549134,1727688646128,-759.42,0.00012499,2]
[339549135,1727688646137,-759.42,0.00012499,2]
[339549136,1727688646147,-759.42,0.00012499,2]
[339549137,1727688646156,-759.42,0.00012499,2]
[339549138,1727688646166,-759.42,0.00012499,2]
[339549139,1727688646176,-759.42,0.00012499,2]
[339549140,1727688646185,-759.42,0.00012499,2]
[339549141,1727688646195,-759.42,0.00012499,2]
[339549143,1727688646205,-759.42,0.00012499,2]
[339549145,1727688646214,-759.42,0.00012499,2]
[339549147,1727688646223,-759.42,0.00012499,2]
[339549149,1727688646233,-759.42,0.00012499,2]
[339549151,1727688646242,-759.42,0.00012499,2]
[339549153,1727688646251,-759.42,0.00012499,2]
[339549155,1727688646261,-759.42,0.00012499,2]
[339549157,1727688646270,-759.42,0.00012499,2]
[339549159,1727688646279,-759.42,0.00012499,2]
[339549161,1727688646289,-759.42,0.00012499,2]
[339549163,1727688646298,-759.55689202,0.00012499,2]
[339549165,1727688646307,-150.0,0.00012499,3]
[339549167,1727688646317,-500.0,0.00012499,3]
[339549169,1727688646328,-500.0,0.00012499,2]
[339549171,1727688646337,-500.0,0.00012499,2]
[339549173,1727688646347,-500.0,0.00012499,2]
[339549174,1727688646356,-500.0,0.00012499,2]
[339549176,1727688646365,-119.08251004,0.00012499,2]
[339549179,1727688646376,-320.503618,0.00012499,2]
[339549188,1727688646454,-60.41387196,0.00012499,2]
[339549190,1727688646463,-500.0,0.00012499,2]
[339549192,1727688646472,-500.0,0.00012499,2]
[339549194,1727688646482,-500.0,0.00012499,2]
[339549196,1727688646491,-500.0,0.00012499,2]
[339549198,1727688646501,-500.0,0.00012499,2]
[339549200,1727688646510,-500.0,0.00012499,2]
[339549202,1727688646519,-500.0,0.00012499,2]
[339549204,1727688646528,-500.0,0.00012499,2]
[339549206,1727688646537,-500.0,0.00012499,2]
[339549208,1727688646546,-500.0,0.00012499,2]
[339549209,1727688646556,-500.0,0.00012499,2]
[339549212,1727688646565,-500.0,0.00012499,2]
[339549214,1727688646575,-500.0,0.00012499,2]
[339549216,1727688646584,-472.80923294,0.00012499,2]
[339549218,1727688646594,-312.9804716,0.00012499,2]
[339549221,1727688646620,-187.0195284,0.00012499,2]
[339549223,1727688646630,-500.0,0.00012499,2]
[339549225,1727688646639,-500.0,0.00012499,2]
[339549227,1727688646648,-500.0,0.00012499,2]
[339549229,1727688646657,-518.94283314,0.00012499,2]
[339549231,1727688646667,-500.0,0.00012499,2]
[339549233,1727688646676,-500.0,0.00012499,2]
[339549235,1727688646685,-9.81594744,0.00012499,2]
[339549249,1727688646807,-440.090976,0.00012178,2]
[339549251,1727688646816,-490.18405256,0.00012499,2]
[339549253,1727688646826,-500.0,0.00012499,2]
[339549255,1727688646835,-500.0,0.00012499,2]
[339549257,1727688646844,-500.0,0.00012499,2]
[339549259,1727688646854,-500.0,0.00012499,2]
[339549261,1727688646863,-500.0,0.00012499,2]
[339549263,1727688646872,-500.0,0.00012499,2]
[339549265,1727688646882,-500.0,0.00012499,2]
[339549267,1727688646892,-500.0,0.00012499,2]
[339549269,1727688646901,-500.0,0.00012499,2]
[339549271,1727688646910,-500.0,0.00012499,2]
[339549273,1727688646920,-500.0,0.00012499,2]
[339549275,1727688646929,-539.55313509,0.00012499,2]
[339549277,1727688646938,-1155.83264134,0.000125,2]
[339549279,1727688646947,-4868.17019501,0.000125,2]
[339549281,1727688646959,-9635.5827,0.000125,2]
[339550150,1727688750407,159.03,0.00013918,30]
[339550152,1727688800639,2044.13674397,0.00021,60]
[339550153,1727688812582,200.0,0.00021737,120]
[339550155,1727689029798,471.53,9.408e-05,2]
[339550158,1727689427619,151.0,0.00022,120]
[339550159,1727689530478,992.73780152,0.00022,120]
[339550160,1727689571686,273.67197504,0.00021,60]
[339550167,1727689640914,461.29,9.071e-05,2]
[339550190,1727689832227,-190.90777657,0.00010826,2]
[339550192,1727689832237,-173.84,0.00010909,2]
[339550194,1727689832247,-506.09,0.00010924,2]
[339550196,1727689832256,-170.91,0.00010926,2]
[339550198,1727689832267,-1000.0,0.0001093,2]
[339550200,1727689832276,-173.75,0.00010959,2]
[339550202,1727689832284,-250.0,0.00010959,2]
[339550204,1727689832293,-250.0,0.00011029,2]
[339550206,1727689832303,-250.0,0.00011061,2]
[339550207,1727689832312,-180.82,0.00011072,2]
[339550209,1727689832493,-150.0,0.00011244,2]
[339550210,1727689832503,-150.0,0.00011244,2]
[339550211,1727689832513,-150.0,0.00011244,2]
[339550212,1727689832522,-150.0,0.00011244,2]
[339550213,1727689832532,-151.51,0.00011298,2]
[339550215,1727689832542,-743.23,0.00011298,2]
[339550216,1727689832551,-151.51,0.00011303,2]
[339550217,1727689832560,-151.51,0.00011309,2]
[339550218,1727689832570,-151.51,0.00011314,2]
[339550219,1727689832579,-151.51,0.00011319,2]
[339550220,1727689832588,-300.0,0.00011323,2]
[339550221,1727689832597,-151.51,0.00011324,2]
[339550222,1727689832607,-2320.35,0.00011324,2]
[339550223,1727689832616,-151.51,0.00011329,2]
[339550224,1727689832626,-151.51,0.00011334,2]
[339550225,1727689832635,-461.29,0.00011335,2]
[339550226,1727689832644,-151.51,0.00011339,2]
[339550227,1727689832654,-151.51,0.00011344,2]
[339550228,1727689832666,-151.51,0.0001135,2]
[339550229,1727689832675,-151.51,0.00011355,2]
[339550230,1727689832685,-150.0,0.00011438,2]
[339550231,1727689832694,-369.07,0.00011438,2]
[339550232,1727689832704,-150.0,0.00011494,2]
[339550233,1727689832714,-2751.0,0.00011507,2]
[339550234,1727689832724,-150.0,0.0001166,2]
[339550235,1727689832734,-150.0,0.00011744,2]
[339550236,1727689832743,-150.0,0.00011868,2]
[339550237,1727689832753,-3400.0,0.000119,4]
[339550238,1727689832762,-150.0,0.00011993,2]
[339550239,1727689832772,-6800.0,0.00012,4]
[339550240,1727689832782,-196.66671,0.00012027,2]
[339550241,1727689832791,-154.685099,0.00012027,2]
[339550242,1727689832802,-173.592512,0.00012027,2]
[339550243,1727689832811,-196.666709,0.00012027,2]
[339550244,1727689832821,-180.0,0.00012059,2]
[339550245,1727689832830,-150.0,0.00012077,2]
[339550246,1727689832844,-978.61119343,0.000121,4]
[339550247,1727689832860,-9221.38880657,0.000121,4]
[339550248,1727689832869,-171.15,0.00012164,2]
[339550249,1727689832879,-180.82,0.0001218,2]
[339550250,1727689832889,-13600.0,0.000122,4]
[339550251,1727689832898,-150.0,0.00012243,2]
[339550252,1727689832908,-173.84,0.00012273,2]
[339550253,1727689832917,-1000.0,0.00012296,2]
[339550254,1727689832927,-1250.0,0.000123,2]
[339550255,1727689832937,-17000.0,0.000123,4]
[339550256,1727689832946,-440.090976,0.00012328,2]
[339550257,1727689832955,-173.592512,0.00012328,2]
[339550258,1727689832964,-450.3104,0.00012384,2]
[339550259,1727689832974,-9459.9193,0.00012397,2]
[339550260,1727689832983,-317.6849,0.00012397,2]
[339550261,1727689832993,-522.79243652,0.00012397,2]
[339550262,1727689833003,-3016.55182492,0.00012397,2]
[339550263,1727689833012,-121.55934313,0.00012398,2]
[339550264,1727689833023,-485.13279848,0.00012398,2]
[339550265,1727689833033,-327.7022,0.00012398,2]
[339550266,1727689833043,-6087.16500152,0.00012398,2]
[339550267,1727689833055,-7592.70639848,0.00012398,2]
[339550268,1727689833064,-2422.79360148,0.00012398,2]
[339550269,1727689833076,-2044.38867562,0.00012398,2]
[339550270,1727689833088,-262.18166012,0.00012398,2]
[339550271,1727689833100,-3206.61110849,0.00012398,2]
[339550272,1727689833111,-1205.01960956,0.00012398,2]
[339550273,1727689833128,-1214.07401757,0.00012398,2]
[339550281,1727689838321,-5611.13584896,0.00012398,2]
[339550282,1727689838347,-35108.2119782,0.00012398,2]
[339550283,1727689838357,-606.69214154,0.00012398,2]
[339550284,1727689838367,-606.69214154,0.00012398,2]
[339550285,1727689838377,-606.69214154,0.00012399,2]
[339550286,1727689838387,-606.69214154,0.00012399,2]
[339550287,1727689838398,-606.69214154,0.00012399,2]
[339550288,1727689838408,-606.69214154,0.00012399,2]
[339550289,1727689838420,-606.69214154,0.000124,2]
[339550290,1727689838430,-606.69214154,0.000124,2]
[339550291,1727689838439,-766.99551926,0.000124,2]
[339550292,1727689838449,-298.33,0.000124,2]